Cogmind - Beta 16 @@@ ROGUE MODE // 2025.12.02 @ 16:06:23 Player: Decree0327 Result: Destroyed by X-62 Marksman with Gauss Rifle Performance ------------- Evolutions (2) 1000 Regions Visited (3) 600 Robots Destroyed (37) 185 Value Destroyed (889) 889 Prototype IDs (0) 0 Alien Tech Used (0) 0 Bonus (0) 0 TOTAL SCORE: 2674 Bonus ------- None Cogmind --------- Core Integrity 0/550 Matter 65/300 Energy 97/100 System Corruption 0% Temperature Cool (1) Movement Treading (145) Location -8/Materials Parts ------- > --- POWER (1) -------- (None) > --- PROPULSION (3) --- Advanced Treads > --- UTILITY (5) ------ Small Storage Unit Weight Redist. System Terrain Scan Processor > --- WEAPON (2) ------- (None) > --- INVENTORY (8) ---- Advanced Treads Aluminum Leg Aluminum Leg Improved Heat Sink Weight Redist. System Visual Processing Unit System Shield Peak State ------------ > --- POWER ------------ Improved Ion Engine > --- PROPULSION ------- Armored Treads Surge Thruster Surge Thruster > --- UTILITY ---------- Small Storage Unit Weight Redist. System Terrain Scan Processor Terrain Scan Processor Seismic Detector > --- WEAPON ----------- Minigun Minigun > --- INVENTORY -------- Aluminum Leg Aluminum Leg Weight Redist. System Visual Processing Unit Grenade Launcher Rocket Launcher Mining Laser [Rating: 26] Favorites ----------- Power Light Nuclear Core Engine Improved Ion Engine Power Core Light Nuclear Core Propulsion Compact Wheel Treads Armored Treads Leg Aluminum Leg Wheel Compact Wheel Flight Unit Surge Thruster Utility Small Storage Unit Device Seismic Detector Storage Small Storage Unit Processor Terrain Scan Processor Weapon Assault Rifle Energy Gun Small Laser Ballistic Gun Assault Rifle Launcher Rocket Launcher Special Weapon Mining Laser Build | -11 -10 -9 -8 ------- Run | Yrd Mat Mat Mat Slots Evolved 4 | . . 2 2 Power . | . . . . Propulsion 1 | . . . 1 Utility 3 | . . 2 1 Weapon . | . . . . Parts Attached 34 | 8 2 8 16 Power 6 | 1 1 1 3 Engine 3 | 1 . . 2 Core 3 | . 1 1 1 Reactor . | . . . . Propulsion 11 | 2 . 3 6 Treads 4 | . . . 4 Leg 2 | . . 2 . Wheel 3 | 2 . 1 . Hover . | . . . . Flight 2 | . . . 2 Utility 7 | 2 . 2 3 Device 4 | 1 . 2 1 Storage 1 | 1 . . . Processor 2 | . . . 2 Hackware . | . . . . Protection . | . . . . Artifact . | . . . . Weapon 10 | 3 1 2 4 Energy Gun 3 | 2 . . 1 Energy Cannon . | . . . . Ballistic Gun 4 | 1 . 1 2 Ballistic Cannon . | . . . . Launcher 2 | . . 1 1 Special Weapon 1 | . 1 . . Impact Weapon . | . . . . Slashing Weapon . | . . . . Piercing Weapon . | . . . . Special Melee Weapon . | . . . . Unidentified Prototypes . | . . . . Parts Lost 18 | . . 2 16 Power 3 | . . . 3 Propulsion 4 | . . 1 3 Utility 3 | . . . 3 Weapon 8 | . . 1 7 Highest Loss Streak 7 | . . 2 7 To Critical Strikes . | . . . . Average Backups 6 | 3 7 7 6 Power 1 | . 1 2 . Propulsion 1 | 1 2 1 1 Utility 1 | . 1 . 2 Weapon 2 | 1 2 2 2 Tool/Special . | . . . . Unused Backups 7 | 1 . 1 5 Power 2 | 1 . 1 . Propulsion 2 | . . . 2 Utility 3 | . . . 3 Weapon . | . . . . Tool/Special . | . . . . Average Slot Usage (%) 93 | . 100 98 87 Engine 3 | . 3 . 5 Core 6 | . 10 11 2 Treads 2 | . . . 5 Leg 3 | . . 8 1 Wheel 14 | . 28 12 10 Flight 1 | . . . 2 Device 24 | . 14 32 22 Storage 10 | . 14 11 8 Processor 5 | . . . 11 Energy Gun 2 | . 8 3 . Ballistic Gun 11 | . 14 12 11 Launcher 2 | . . 3 3 Special Weapon 2 | . 5 2 . Peak Build Rating 26 | 7 10 17 26 Average Rating 14 | 6 9 15 19 On Entrance 8 | . 7 10 17 Avg Prop Armor Cover (%) 11 | . . . 11 Naked Turns . | . . . . Heaviest Build 21 | 14 14 19 21 Greatest Support 66 | 32 32 38 66 Greatest Overweight (x) 2 | . . . 2 Average Overweight (x) . | . . . . Largest Inventory Capacity 8 | 8 8 8 8 Average Capacity 7 | 7 8 8 7 Most Carried 8 | 6 8 8 8 Average Carried 6 | 4 7 7 6 Final Capacity 8 | 8 8 8 8 Final Carried 8 | 6 8 8 7 Class Distribution -------------------- 82% | Mutant 17% | Scavenger-Mutant Dominant Class ---------------- Mutant | -10/Materials Mutant | -9/Materials Mutant | -8/Materials Resources | -11 -10 -9 -8 ----------- Run | Yrd Mat Mat Mat Matter Collected 809 | 340 37 262 170 Remotely . | . . . . Salvage Created 1059 | 277 153 330 299 Parts 80 | 22 10 21 27 Haulers Intercepted . | . . . . Recyclers Shooed 1 | 1 . . . Parts Field Recycled . | . . . . Retrieved Matter . | . . . . Parts Self-Destructed . | . . . . Prevented . | . . . . Parts Restored . | . . . . Kills | -11 -10 -9 -8 ------- Run | Yrd Mat Mat Mat Combat Hostiles Destroyed 24 | . 5 9 10 Melee 1 | . . . 1 Guns 18 | . 5 8 5 AOE 5 | . . 1 4 Classes Destroyed 9 | 3 2 2 2 Worker 2 | 2 . . . Builder 1 | . . . 1 Tunneler 7 | 7 . . . Recycler 1 | 1 . . . Watcher 2 | . . 2 . Swarmer 7 | . 3 4 . Cutter 2 | . . . 2 Grunt 11 | . 2 3 6 Sentry 4 | . . 2 2 Best Kill Streak 5 | 5 3 4 4 Combat Bots Only 4 | . 3 4 4 Max Kills in Single Turn 2 | 1 1 1 2 Gunslinging . | . . . . Exploded 2 | . . 1 2 Melee 1 | . . . 1 Uniques/NPCs Destroyed . | . . . . Combat | -11 -10 -9 -8 -------- Run | Yrd Mat Mat Mat Hostile Shots Fired 226 | . 6 65 155 Missed 52 | . . 17 35 Hits 174 | . 6 48 120 Melee 4 | . . . 4 Projectile 170 | . 6 48 116 AOE 2 | . . . 2 Critical Strikes 4 | . 1 1 2 Damage Taken 2919 | . 56 598 2265 Core 681 | . 7 104 570 Absorbed by Shields . | . . . . Regen/Repaired (Parts) 45 | . . . 45 Core Remaining (%) 90 | 100 97 74 . Volleys Fired 119 | 27 13 38 41 Largest 2 | 2 2 2 2 Hottest 140 | 80 100 140 100 Shots Fired 184 | 54 22 55 53 Gun 162 | 54 18 46 44 Cannon . | . . . . Launcher 12 | . . 4 8 Special 10 | . 4 5 1 Kinetic 104 | 20 9 33 42 Thermal 51 | 27 13 8 3 Explosive 12 | . . 4 8 Electromagnetic 17 | 7 . 10 . Robot Hit Streak 7 | 7 7 7 5 Robot Miss Streak 5 | 3 1 5 3 Penetration Max . | . . . . Secondary Targets . | . . . . Shots Hit Robots 107 | 33 11 30 33 Core Hits 66 | 11 8 20 27 Critical Kills . | . . . . Critical Parts Destroyed . | . . . . Critical Strikes . | . . . . Melee Attacks . | . . . . Impact . | . . . . Slashing . | . . . . Piercing . | . . . . Sneak Attacks . | . . . . Combat Hostiles . | . . . . Follow-up Attacks . | . . . . Damage Inflicted 2010 | 429 134 463 984 Guns 1469 | 429 134 382 524 Cannons . | . . . . Explosions 480 | . . 57 423 Melee . | . . . . Ramming 37 | . . . 37 Kinetic 1005 | 148 81 285 491 Thermal 369 | 225 53 58 33 Explosive 480 | . . 57 423 Electromagnetic 119 | 56 . 63 . Impact . | . . . . Slashing . | . . . . Piercing . | . . . . Highest Corruption . | . . . . Average Corruption . | . . . . Corruption Purged . | . . . . Corruption Blocked . | . . . . Overload Shots . | . . . . Overflow Damage . | . . . . Projectiles . | . . . . Explosions . | . . . . Melee . | . . . . Knockbacks . | . . . . Impact . | . . . . Kinetic . | . . . . Secondary . | . . . . Self-Inflicted Damage 85 | . . 47 38 Shots 3 | . . 2 1 Rammed 22 | . . . 22 Targets Rammed 23 | . . . 23 Kicked . | . . . . Crushed 1 | . . . 1 Highest Temperature 132 | 50 58 132 41 Average Temperature 24 | 24 18 32 10 Received Heat Transfer 879 | . 15 153 711 Siege Activations . | . . . . Martial Activations . | . . . . Shielding Activations . | . . . . Robots Disrupted . | . . . . Combat Hostiles . | . . . . Robots Corrupted . | . . . . Combat Hostiles . | . . . . Parts Fried . | . . . . Impact Corruptions . | . . . . Robots Melted . | . . . . Combat Hostiles . | . . . . Parts Melted . | . . . . Heat Transferred 824 | 500 125 125 74 Parts Sabotaged . | . . . . Parts Stolen . | . . . . Parts Stripped . | . . . . Power Chain Reactions . | . . . . Alert | -11 -10 -9 -8 ------- Run | Yrd Mat Mat Mat Maximum Alert Level . | . . . . Low Security (%) 100 | 100 100 100 100 Level 1 . | . . . . Level 2 . | . . . . Level 3 . | . . . . Level 4 . | . . . . Level 5 . | . . . . High Security . | . . . . Max Security . | . . . . Peak Influence 181 | 15 145 96 181 Initial 40 | . . 27 40 Average 43 | 2 80 29 54 Influence Increases 848 | 50 171 293 334 Destroy 0b10 Robot/C 480 | . 100 180 200 Destroy 0b10 Robot/NC 65 | 50 . 10 5 Destroy Leader 114 | . 20 44 50 Successful Hack 4 | . 4 . . Disable Machine 45 | . 15 15 15 Destroy Structure 65 | . 2 29 34 Lose Combat Pursuer 75 | . 30 15 30 Influence Decreases 793 | 50 104 264 375 Entered New Map 96 | . . 40 56 Time Decay 539 | 50 104 216 169 Lost Part 158 | . . 8 150 Squads Dispatched 6 | . . 1 5 Investigation 1 | . . . 1 Extermination . | . . . . Reinforcement 5 | . . 1 4 Assault . | . . . . Garrison . | . . . . Intercept . | . . . . Searches Triggered . | . . . . Construction Impeded . | . . . . Haulers Reinforced . | . . . . Active Scanning Responses . | . . . . Cargo Convoy Interrupts . | . . . . Stealth | -11 -10 -9 -8 --------- Run | Yrd Mat Mat Mat Distress Signals 2 | . . 2 . Communications Jammed . | . . . . Distress Signals . | . . . . Times Spotted 43 | . 5 17 21 Peak Tracking Total 6 | . 2 5 6 Tactical Retreats 4 | . 1 1 2 Traps | -11 -10 -9 -8 ------- Run | Yrd Mat Mat Mat Traps Triggered 1 | . . . 1 Indirectly . | . . . . Trap Hack Attempts . | . . . . Triggered . | . . . . Disarmed . | . . . . Reprogrammed . | . . . . Reused . | . . . . Traps Extracted . | . . . . Installed . | . . . . Triggered . | . . . . Machines | -11 -10 -9 -8 ---------- Run | Yrd Mat Mat Mat Machines Disabled 3 | . 1 1 1 Max in Single Turn 1 | . 1 1 1 Machines Repaired . | . . . . Machines Dismantled . | . . . . Machines Sabotaged . | . . . . Overloaded Fab Kills . | . . . . Hacking | -11 -10 -9 -8 --------- Run | Yrd Mat Mat Mat Machines Accessed 8 | . 2 2 4 Terminals 5 | . 2 1 2 Fabricators . | . . . . Repair Stations 1 | . . . 1 Recycling Units 1 | . . 1 . Scanalyzers 1 | . . . 1 Garrison Access . | . . . . Total Hacks 25 | . 7 4 14 Successful 14 | . 3 3 8 Failed 11 | . 4 1 6 Catastrophic 1 | . . 1 . Database Lockouts . | . . . . Manual 6 | . 3 1 2 Terminals 13 | . 7 1 5 Fabricators . | . . . . Repair Stations 4 | . . . 4 Recycling Units 3 | . . 3 . Scanalyzers 5 | . . . 5 Garrison Access . | . . . . Terminal Hacks 4 | . 3 . 1 Record 1 | . 1 . . Alert Level 2 | . 1 . 1 Dispatch Records 1 | . 1 . . Fabricator Hacks . | . . . . Repair Station Hacks 2 | . . . 2 Scan Component 1 | . . . 1 Repair 1 | . . . 1 Recycling Unit Hacks 3 | . . 3 . Process 1 | . . 1 . Report Inventory 1 | . . 1 . Retrieve Components 1 | . . 1 . Scanalyzer 5 | . . . 5 Insert Component 2 | . . . 2 Analyze 1 | . . . 1 Retrieve Study 2 | . . . 2 Garrison Access Hacks . | . . . . Unauthorized Hacks . | . . . . Terminals . | . . . . Fabricators . | . . . . Repair Stations . | . . . . Recycling Units . | . . . . Scanalyzers . | . . . . Garrison Access . | . . . . Data Cores Recovered . | . . . . Used . | . . . . Hacking Detections 5 | . 1 2 2 Full Trace Events 2 | . 1 . 1 Feedback Events . | . . . . Feedback Blocked . | . . . . Robot Schematics Acquired . | . . . . Robots Built . | . . . . Authchips . | . . . . Time . | . . . . Total Robot Build Rating . | . . . . Part Schematics Acquired 1 | . . . 1 Parts Built . | . . . . Authchips . | . . . . Time . | . . . . Total Part Build Rating . | . . . . Part Studies Acquired 2 | . . . 2 Parts Repaired 1 | . . . 1 Time 26 | . . . 26 Parts Recycled . | . . . . Recycled Matter 195 | . . 195 . Retrieved Matter . | . . . . Retrieved Components . | . . . . Parts Scanalyzed 1 | . . . 1 Part Schematics Acquired 1 | . . . 1 Parts Damaged . | . . . . Bothacking | -11 -10 -9 -8 ------------ Run | Yrd Mat Mat Mat Used RIF Installer . | . . . . Robots Hacked . | . . . . Non-combat . | . . . . Combat . | . . . . Robot Hacks Applied . | . . . . Relay Couplers Released . | . . . . Fabnet Peak Effective % . | . . . . Robots Rewired . | . . . . Allies Hacked . | . . . . Hacks Repelled . | . . . . Allies | -11 -10 -9 -8 -------- Run | Yrd Mat Mat Mat Total Allies . | . . . . Largest Group . | . . . . Highest-Rated Group . | . . . . Highest-Rated Ally . | . . . . Total Orders . | . . . . Ally Attacks . | . . . . Total Damage . | . . . . Kills . | . . . . Allies Corrupted . | . . . . Allies Melted . | . . . . Intel | -11 -10 -9 -8 ------- Run | Yrd Mat Mat Mat Active Infowar (turns) 1565 | 142 249 519 655 Terrain 933 | . . 519 414 Seismic 1565 | 142 249 519 655 Robot Analysis Total . | . . . . Derelict Logs Recovered . | . . . . Drone Launches . | . . . . Drone Recoveries . | . . . . Exploration | -11 -10 -9 -8 ------------- Run | Yrd Mat Mat Mat Turns Passed 1738 | 239 249 519 731 Spaces Moved 1015 | 140 187 330 358 Core 13 | 2 . . 11 Treads 49 | . . . 49 Legs 113 | . . 113 . Wheels 767 | 138 187 217 225 Hover . | . . . . Flight 73 | . . . 73 Fastest Speed 50 | 50 100 100 50 Average Speed 103 | 99 100 106 105 Slowest Speed 170 | 100 100 120 170 Overloaded Moves . | . . . . Propulsion Burnouts . | . . . . Robots Hopped . | . . . . Potential Cave-ins 3 | . 2 . 1 Cave-ins Triggered . | . . . . Exploration Rate (%) 19 | 4 25 25 24 Regions Visited 3 Branch Regions . Pre-discovered Areas . | . . . . Known Exits Taken . | . . . . Unknown Exits Taken 3 | 1 1 1 . Scrap Searched . | . . . . Spaces Dug 7 | . 4 2 1 Terrain Destroyed 90 | . 4 40 46 Melee . | . . . . Projectile 9 | . 4 4 1 AOE 81 | . . 36 45 Terrain Rammed . | . . . . Walls Destroyed . | . . . . Machines Disabled . | . . . . Actions | -11 -10 -9 -8 --------- Run | Yrd Mat Mat Mat Total 1477 | 183 218 428 648 Wait 231 | . 15 32 184 Move 1012 | 139 186 329 358 Hop . | . . . . Pick Up 25 | 8 2 8 7 Fast Attach 20 | 6 . 2 12 Attach 12 | 1 . 3 8 Detach 3 | . . . 3 Swap 19 | 1 2 10 6 Drop 13 | 1 . 6 6 Fire 119 | 27 13 38 41 Melee . | . . . . Ram . | . . . . Kick . | . . . . Crush 23 | . . . 23 Escape Stasis . | . . . . Rewire . | . . . . Trap . | . . . . Miscellaneous . | . . . . Route ------- -11/Scrapyard -10/Materials -9/Materials -8/Materials (discovered 1 exit: [*Fac]) History --------- Turn | Location | Event 19 | -11/Scrapyard | Discovered new exit (range 16) 240 | -11/Scrapyard | Entered Materials 327 | -10/Materials | Build established: Mutant 408 | -10/Materials | Discovered new exit (range 2) 489 | -10/Materials | Entered another Materials area 489 | -9/Materials | Evolved 2 slots: Utility x2 974 | -9/Materials | Discovered new exit (range 13) 1008 | -9/Materials | Entered another Materials area 1008 | -8/Materials | Evolved 2 slots: Propulsion x1, Utility x1 1236 | -8/Materials | Repaired Sml. Storage Unit 1492 | -8/Materials | Discovered new exit (range 14) 1597 | -8/Materials | Core integrity fell below 50% 1641 | -8/Materials | Lost 3 parts (1p1n1w) 1707 | -8/Materials | Core integrity fell below 20% 1736 | -8/Materials | Lost 7 parts (1p1n2u3w) 1739 | -8/Materials | Destroyed by X-62 Marksman with Gauss Rifle Last Messages --------------- 01693_ Slug penetrates Wall. 01694_ K-01 Serf collects debris. 01702_ Penetrated by Slug. 01702_ Adv. Treads destroyed. 01703_ Lgt. Nuclear Core destroyed. 01705_ Penetrated by Slug. 01705_ Particle Gun destroyed. 01709_ Penetrated by Slug. 01710_ Slammed into U-05 Engineer. 01713_ Slammed into X-62 Marksman. 01714_ Slug penetrates Wall. 01716_ K-01 Serf cleans the Matter Filter. 01717_ Penetrated by Slug. 01719_ K-01 Serf cleans the Matter Filter. 01720_ Slammed into A-02 Transporter. 01724_ K-01 Serf cleans the Matter Filter. 01736_ Penetrated by Slug. 01736_ Adv. Treads destroyed. 01737_ Slug penetrates Wall. 01739_ Penetrated by Slug. Map ----- +----------------------------------------------------+ | # # # # # # = ! ??? | | T # + #" =/ ## [ ??? | | # # #"Y # #? < ??? | | # # #"" # ## ????? | | # #! # # #? +????? | | # # # # #???? #????? | | # # ### #### #?#?? #????? | | # # #?###?## ##??? #????? | | ##### #######?#???# #????H #????? | | ??###+###???#??#??# #???? #????? | | #?# ???#####???## #???# #????? | | ##?? ?#######??# #???# #????? | | #?? ""? ??#???#???# #???# #????? | | ###??""? ?##??#####+##### #????? | | #?"""? ?#????# # #????? | | ??? ???????## """"" # #????? | | ??#??#?#?#?????# """"" # #????? | | ? #?## ???? ???# """"" # #????? | | ???????????????# """"" + #????? | | ???????????????# """"" #xx #????? | | ?????#?"???????+ """"" # #????? | | ???#?????????? # """"" # #????? | | ?????????????" # ? # #????? | | ??????????????????####### #????? | | ????????????????????????# #????? | | ????????????????????????#@ #????? | | ???????????????????????u #????? | | ????????????????????? #????? | | ??????????????????? #????? | | ??????????????????####### #????? | | ????????????????????????# #????? | | ????????????????????????# #????? | | ????????????????????????+ #????? | | ????????????????????????# #????? | | ????????????????????????? #????? | | ????????????????????????? #????? | | ????????????????????????? #????? | | ????????????????????????? #????? | | ????????????????????????? #????? | | ????????????????????????? t????? | | ????????????????????????? ?????? | | ?????????????????????????????????? | | ?????????????????????????????????? | | ?????????????????????????????????? | | ?????????????????????????????????? | | ?????????????????????????????????? | | ?????????????????????????????????? | | ?????????????????????????????????? | | ?????????????????????????????????? | | ?????????????????????????????????? | +----------------------------------------------------+ Best States ------------- Heat Dissipation 31 Energy Generation 14 Energy Capacity 265 Matter Stores 300 Matter Capacity 300 Sight Range 16 Terrain Scan Range 16 Terrain Scan Density 160 Additional Mass Support 6 Evasion (%) 55 Recoil Reduction 3 Item Schematics ----------------- Weight Redist. System | -8/Materials | Scanalyzed Robot Schematics ------------------ None Fabricated ------------ Nothing Repaired ---------- Sml. Storage Unit | 70% | -8/Materials Studied --------- Rocket Launcher | -8/Materials | Hacked Arm. Treads | -8/Materials | Hacked Alien Tech Used ----------------- None Achievements -------------- None Challenges ------------ None Game ------ Seed PartitionMassDisintegrator Manual? 0 Play Time 00:25:28 Cumulative 20.0 hours Start 2025.12.02 @ 15:38:54 End 2025.12.02 @ 16:06:23 Sessions 1 Manual Loads 0 Difficulty Rogue Special Mode None Game No. 16 Rogue 7 Adventurer 8 Explorer 1 Win Type - Total 0 Types 0/0/0/0/0/0/0/0/0/0 Lore% 6 Gallery% 23 Achievement% 18 Wizard Run 0 Options --------- Layout 1 ASCII 0 Keyboard 0 Movement Numpad Keybinds 0 Fullscreen 1 Font 32/SmallcapsGlow Map View 77x35 Zoom Use 0% Tactical HUD 1 Map Filters NONE Filters NONE Steam 1 RUN: a8f4eb20-5ab9-41d3-9068-cf8245e66525